fUSD/lending_fUSD_20250414
["ID","MTS","AMOUNT","RATE_DAILY","PERIOD"]
[357936681,1744601448706,-500.0,0.00019726,2]
[357936682,1744601448716,-500.0,0.00019726,2]
[357936683,1744601448726,-500.0,0.00019726,2]
[357936684,1744601448735,-500.0,0.00019726,2]
[357936685,1744601448745,-500.0,0.00019726,2]
[357936686,1744601448756,-500.0,0.00019726,2]
[357936687,1744601448766,-500.0,0.00019726,2]
[357936688,1744601448777,-363.85627383,0.00019726,2]
[357936689,1744601448787,-334.78,0.00019726,2]
[357936690,1744601448796,-422.15943764,0.00019726,2]
[357936691,1744601448806,-547.56573432,0.00019726,2]
[357936692,1744601448816,-500.0,0.00019726,2]
[357936693,1744601448825,-500.0,0.00019726,2]
[357936694,1744601448835,-325.95,0.00019726,2]
[357936695,1744601448844,-500.0,0.00019726,2]
[357936696,1744601448855,-500.0,0.00019726,2]
[357936697,1744601448866,-390.47128146,0.00019726,2]
[357936698,1744601448875,-222.46752932,0.00019726,2]
[357936699,1744601448886,-500.0,0.00019726,2]
[357936700,1744601448895,-500.0,0.00019726,2]
[357936701,1744601448905,-500.0,0.00019726,2]
[357936702,1744601448916,-6970.71,0.00019726,2]
[357936703,1744601448926,-500.0,0.00019726,2]
[357936704,1744601448935,-442.21008805,0.00019726,2]
[357936705,1744601448945,-500.0,0.00019726,2]
[357936706,1744601448956,-315.52300323,0.00019726,2]
[357936707,1744601448966,-500.0,0.00019726,2]
[357936708,1744601448976,-500.0,0.00019726,2]
[357936709,1744601448985,-500.0,0.00019726,2]
[357936710,1744601448994,-177.94958251,0.00019726,2]
[357936711,1744601449004,-500.0,0.00019726,2]
[357936712,1744601449014,-500.0,0.00019726,2]
[357936713,1744601449023,-500.0,0.00019726,2]
[357936714,1744601449033,-500.0,0.00019726,2]
[357936715,1744601449043,-500.0,0.00019726,2]
[357936716,1744601449052,-500.0,0.00019726,2]
[357936717,1744601449062,-500.0,0.00019726,2]
[357936718,1744601449072,-569.22868221,0.00019726,2]
[357936719,1744601449081,-500.0,0.00019726,2]
[357936720,1744601449091,-500.0,0.00019726,2]
[357936721,1744601449101,-500.0,0.00019726,2]
[357936722,1744601449111,-637.31,0.00019726,2]
[357936723,1744601449121,-500.0,0.00019726,2]
[357936724,1744601449131,-500.0,0.00019726,2]
[357936725,1744601449144,-499.06606387,0.00019726,2]
[357936726,1744601449153,-685.42,0.00019726,2]
[357936727,1744601449163,-194.4791002,0.00019726,2]
[357936728,1744601449177,-151.0,0.00019726,2]
[357936729,1744601449186,-500.0,0.00019726,2]
[357936730,1744601449196,-536.83544645,0.00019726,2]
[357936731,1744601449206,-533.91970149,0.00019726,2]
[357936732,1744601449217,-500.0,0.00019726,2]
[357936733,1744601449227,-151.0,0.00019742,2]
[357936734,1744601449237,-151.0,0.00019742,2]
[357936735,1744601449246,-270.318796,0.00019742,2]
[357936736,1744601449257,-270.318796,0.00019742,2]
[357936737,1744601449267,-151.0,0.00019742,2]
[357936738,1744601449278,-151.0,0.00019742,2]
[357936739,1744601449288,-214.234068,0.00019742,2]
[357936740,1744601449298,-151.0,0.00019742,2]
[357936741,1744601449308,-28244.48232288,0.00019743,2]
[357936742,1744601449319,-378.304225,0.00019745,2]
[357936743,1744601449329,-378.304225,0.00019745,2]
[357936744,1744601449339,-1795.183534,0.00019745,2]
[357936745,1744601449350,-163.929871,0.00019745,2]
[357936746,1744601449360,-1795.183534,0.00019745,2]
[357936747,1744601449370,-15663.05433886,0.00019746,2]
[357936748,1744601449399,-509.39484298,0.00019178,2]
[357936749,1744601449409,-27055.57159365,0.00019746,2]
[357936750,1744601449419,-781.57665068,0.00019747,2]
[357936751,1744601449430,-250.0,0.0001975,2]
[357936752,1744601449439,-151.0,0.00019759,2]
[357936753,1744601449448,-55828.45691269,0.00019759,2]
[357936754,1744601449460,-560.92,0.00019759,2]
[357936755,1744601449471,-4200.54824363,0.00019759,2]
[357936756,1744601449617,-0.00355491,0.00019178,2]
[357936757,1744601449628,-503.05939907,0.00019178,2]
[357936758,1744601449638,-1874.7622106,0.00019759,2]
[357936759,1744601449650,-13434.84312285,0.00019759,2]
[357936760,1744601449660,-262.45863438,0.00019759,2]
[357936761,1744601449669,-28244.48232288,0.00019759,2]
[357936762,1744601449679,-781.57665068,0.00019767,2]
[357936763,1744601449689,-42718.62593251,0.00019775,2]
[357936764,1744601449699,-190.729831,0.00019775,2]
[357936765,1744601449709,-190.729831,0.00019775,2]
[357936766,1744601449718,-151.0,0.00019775,2]
[357936767,1744601449727,-151.0,0.00019775,2]
[357936768,1744601449738,-270.318796,0.00019775,2]
[357936769,1744601449747,-270.318796,0.00019775,2]
[357936770,1744601449756,-151.0,0.00019775,2]
[357936771,1744601449766,-151.924045,0.00019775,2]
[357936772,1744601449776,-160.555876,0.00019775,2]
[357936773,1744601449785,-151.0,0.00019775,2]
[357936774,1744601449794,-744.54731115,0.0001979,2]
[357936775,1744601449804,-2047.0,0.00019794,2]
[357936776,1744601449814,-404.32384904,0.000198,2]
[357936777,1744601449823,-300.0,0.00019817,2]
[357936778,1744601449832,-420.0,0.00019821,2]
[357936779,1744601449841,-407.399,0.00019863,2]
[357936780,1744601449851,-500.0,0.00019863,2]
[357936781,1744601449860,-500.0,0.00019863,2]
[357936782,1744601449869,-500.0,0.00019863,2]
[357936783,1744601449879,-500.0,0.00019863,2]
[357936784,1744601449888,-500.0,0.00019863,2]
[357936785,1744601449898,-500.0,0.00019863,2]
[357936786,1744601449908,-500.0,0.00019863,2]
[357936787,1744601449917,-500.0,0.00019863,2]
[357936788,1744601449926,-500.0,0.00019863,2]
[357936789,1744601449935,-500.0,0.00019863,2]
[357936790,1744601449945,-500.0,0.00019863,2]
[357936791,1744601449954,-500.0,0.00019863,2]
[357936792,1744601449963,-500.0,0.00019863,2]
[357936793,1744601449973,-500.0,0.00019863,2]
[357936794,1744601449982,-500.0,0.00019863,2]
[357936795,1744601449992,-500.0,0.00019863,2]
[357936796,1744601450001,-621.92003,0.00019863,2]
[357936797,1744601450010,-373.362136,0.00019869,2]
[357936798,1744601450019,-283.0528,0.00019886,2]
[357936799,1744601450029,-300.0,0.00019899,2]
[357936800,1744601450039,-500.0,0.00019899,2]
[357936801,1744601450048,-378.304225,0.00019899,2]
[357936802,1744601450058,-378.304225,0.00019899,2]
[357936803,1744601450068,-1795.183534,0.00019899,2]
[357936804,1744601450077,-1795.183534,0.00019899,2]
[357936805,1744601450087,-633.9416,0.000199,2]
[357936806,1744601450096,-194.36210043,0.000199,2]
[357936807,1744601450106,-404.32384904,0.000199,2]
[357936808,1744601450115,-216.46539829,0.000199,2]
[357936809,1744601450124,-402.82047754,0.00019911,2]
[357936810,1744601450136,-154.10931121,0.00019973,2]
[357936811,1744601450146,-885.4885674,0.00019986,2]
[357936812,1744601450156,-164.3551037,0.00019986,2]
[357936813,1744601450165,-4495.0227285,0.00019986,2]
[357936814,1744601450179,-228.2774358,0.00019986,2]
[357936815,1744601450188,-1413.0253276,0.00019986,2]
[357936816,1744601450198,-378.304225,0.00019986,2]
[357936817,1744601450207,-378.304225,0.00019986,2]
[357936818,1744601450217,-1795.183534,0.00019986,2]
[357936819,1744601450227,-1795.183534,0.00019986,2]
[357936820,1744601450236,-4768.9955233,0.00019986,2]
[357936821,1744601450245,-545.5528514,0.00019986,2]
[357936822,1744601450255,-1438.0,0.00019997,2]
[357936823,1744601450265,-1279.0,0.00019997,2]
[357936824,1744601450274,-907.0,0.00019997,2]
[357936825,1744601450284,-545.0,0.00019997,2]
[357936826,1744601450293,-4148.0,0.00019997,2]
[357936827,1744601450302,-575.0,0.00019997,2]
[357936828,1744601450312,-152.0,0.00019997,2]
[357936829,1744601450322,-1287.0,0.00019997,2]
[357936830,1744601450332,-1328.0,0.00019997,2]
[357936831,1744601450341,-500.0,0.00019999,2]
[357936832,1744601450351,-500.0,0.00019999,2]
[357936833,1744601450361,-500.0,0.00019999,2]
[357936834,1744601450370,-500.0,0.00019999,2]
[357936835,1744601450379,-500.0,0.00019999,2]
[357936836,1744601450389,-500.0,0.00019999,2]
[357936837,1744601450399,-595.54791246,0.00019999,2]
[357936838,1744601450409,-531029.3421241,0.0002,2]
[357936839,1744601450418,-949584.66989366,0.0002,2]
[357936840,1744601452222,-516.06534078,0.0002,2]
[357936841,1744601631748,206.616137,0.0002,4]
[357936842,1744602140329,-182.19592974,0.00018107,2]
[357936843,1744602147822,-64.41733326,0.00018107,2]
[357936844,1744602147845,-130.19266674,0.00018152,2]
[357936845,1744602220481,-231.61164051,0.00018152,2]
[357936846,1744602631961,-300.0,0.00018129,2]
[357936847,1744602631971,-300.0,0.00018129,2]
[357936848,1744602631980,-250.0,0.0001813,2]
[357936849,1744602631990,-1075.09129062,0.0001813,2]
[357936850,1744602632001,-784.07063097,0.0001813,2]
[357936851,1744602632066,-558.8778189,0.0001813,2]
[357936852,1744602632078,-20887.05522395,0.0001813,2]
[357936853,1744602632090,-594.90503556,0.0001813,2]
[357936854,1744602632100,-324.76569275,0.00018152,2]
[357936855,1744602632109,-741.86037854,0.0001816,2]
[357937404,1744602638122,-258.13962146,0.0001816,2]
[357937405,1744602638132,-7318.52,0.00018198,2]
[357937406,1744602638142,-159.21,0.00018213,2]
[357937407,1744602638151,-278.97,0.00018259,2]
[357937408,1744602638161,-5596.9,0.00018356,2]
[357937409,1744602638170,-200.0,0.00018652,2]
[357937410,1744602638179,-331.94295864,0.00018958,2]
[357937411,1744602638189,-2000.0,0.00018972,2]
[357937412,1744602638199,-500.0,0.00018972,2]
[357937413,1744602638208,-700.0,0.00018972,2]
[357937414,1744602638217,-283.0266944,0.00018978,2]
[357937415,1744602638227,-565.86452234,0.00018978,2]
[357937416,1744602638238,-438.1088,0.00018978,2]
[357937417,1744602638248,-165.36,0.00018989,2]
[357937418,1744602638258,-163.0,0.00019031,2]
[357937419,1744602638267,-9825.87,0.00019032,2]
[357937420,1744602638277,-152.12,0.00019068,2]
[357937421,1744602638287,-152.12,0.00019068,2]
[357937422,1744602638296,-4132.16,0.00019068,2]
[357937423,1744602638306,-500.0,0.00019073,2]
[357937424,1744602638316,-10459.9538848,0.00019077,2]
[357937425,1744602638327,-1652.11191235,0.00019078,2]
[357937426,1744602638337,-1000.0,0.00019078,2]
[357937428,1744602638348,-209814.5839,0.00019078,2]
[357937430,1744602638357,-39082.9895,0.00019078,2]
[357937431,1744602638366,-283.0528,0.00019078,2]
[357937433,1744602638375,-1568.09040736,0.00019078,2]
[357937435,1744602638388,-182.65579264,0.00019078,2]
[357937437,1744602638397,-283.02669432,0.0001908,2]
[357937439,1744602638406,-152.12,0.00019162,2]
[357937440,1744602638415,-152.12,0.00019168,2]
[357937441,1744602638425,-4132.16,0.00019168,2]
[357937442,1744602638434,-1652.1119123,0.00019169,2]
[357937443,1744602638444,-5000.0,0.00019172,2]
[357937444,1744602638454,-154.10931121,0.00019173,2]
[357937445,1744602638464,-506.65560048,0.00019173,2]
[357937446,1744602638473,-502.90277105,0.00019173,2]
[357937447,1744602638483,-509.08900326,0.00019173,2]
[357937449,1744602638493,-500.0,0.00019173,2]
[357937452,1744602638502,-326.28296547,0.00019177,2]
[357937455,1744602638511,-500.0,0.00019178,2]
[357937458,1744602638521,-510.80408709,0.00019178,2]
[357937460,1744602638530,-500.0,0.00019178,2]
[357937487,1744602638754,-500.0,0.00019178,2]
[357937489,1744602638764,-500.0,0.00019178,2]
[357937491,1744602638773,-500.0,0.00019178,2]
[357937492,1744602638783,-500.0,0.00019178,2]
[357937494,1744602638792,-519.90295627,0.00019178,2]
[357937496,1744602638801,-316.25023813,0.00019178,2]
[357937498,1744602638811,-500.0,0.00019178,2]
[357937500,1744602638820,-500.0,0.00019178,2]
[357937502,1744602638830,-500.0,0.00019178,2]
[357937504,1744602638839,-500.40265757,0.00019178,2]
[357937506,1744602638850,-500.0,0.00019178,2]
[357937508,1744602638859,-500.0,0.00019178,2]
[357937510,1744602638869,-500.0,0.00019178,2]
[357937512,1744602638879,-500.0,0.00019178,2]
[357937514,1744602638889,-500.0,0.00019178,2]
[357937516,1744602638898,-500.0,0.00019178,2]
[357937518,1744602638907,-500.61146988,0.00019178,2]
[357937520,1744602638916,-205.26252469,0.00019178,2]
[357937522,1744602638925,-500.0,0.00019178,2]
[357937524,1744602638934,-500.14064004,0.00019178,2]
[357937526,1744602638943,-500.0,0.00019178,2]
[357937528,1744602638952,-520.45486111,0.00019178,2]
[357937530,1744602638961,-529.45073457,0.00019178,2]
[357937532,1744602638971,-534.93323376,0.00019178,2]
[357937534,1744602638980,-506.62577607,0.00019178,2]
[357937536,1744602638990,-500.0,0.00019178,2]
[357937538,1744602638999,-500.0,0.00019178,2]
[357937540,1744602639008,-504.25568417,0.00019178,2]
[357937542,1744602639017,-571.56307537,0.00019178,2]
[357937544,1744602639026,-521.38186262,0.00019178,2]
[357937546,1744602639035,-509.80416504,0.00019178,2]
[357937548,1744602639044,-531.9,0.00019178,2]
[357937550,1744602639054,-511.47528564,0.00019178,2]
[357937552,1744602639063,-500.0,0.00019178,2]
[357937554,1744602639072,-501.10724186,0.00019178,2]
[357937556,1744602639081,-506.69869191,0.00019178,2]
[357937558,1744602639090,-528.77276104,0.00019178,2]
[357937560,1744602639100,-551.63669366,0.00019178,2]
[357937561,1744602639110,-517.96113907,0.00019178,2]
[357937563,1744602639119,-540.75403116,0.00019178,2]
[357937565,1744602639128,-500.0,0.00019178,2]
[357937567,1744602639137,-657.22,0.00019178,2]
[357937569,1744602639147,-500.0,0.00019178,2]
[357937571,1744602639155,-520.95569493,0.00019178,2]
[357937573,1744602639165,-500.0,0.00019178,2]
[357937575,1744602639174,-252.45394082,0.00019178,2]
[357937577,1744602639183,-500.0,0.00019178,2]
[357937579,1744602639192,-500.0,0.00019178,2]
[357937581,1744602639202,-187.71763451,0.00019178,2]
[357937583,1744602639211,-506.25694933,0.00019178,2]
[357937585,1744602639221,-513.5824133,0.00019178,2]
[357937587,1744602639231,-522.08615888,0.00019178,2]
[357937589,1744602639240,-500.0,0.00019178,2]
[357937591,1744602639249,-503.35192993,0.00019178,2]
[357937593,1744602639259,-529.66998781,0.00019178,2]
[357937595,1744602639268,-504.38968765,0.00019178,2]
[357937597,1744602639277,-502.46486143,0.00019178,2]
[357937599,1744602639287,-522.42625273,0.00019178,2]
[357937601,1744602639296,-500.0,0.00019178,2]
[357937603,1744602639305,-502.28342472,0.00019178,2]
[357937605,1744602639315,-621.04747464,0.00019178,2]
[357937607,1744602639324,-507.47161904,0.00019178,2]
[357937609,1744602639334,-500.0,0.00019178,2]
[357937611,1744602639343,-506.1456171,0.00019178,2]
[357937613,1744602639354,-559.98705869,0.00019178,2]
[357937615,1744602639363,-500.0,0.00019178,2]
[357937617,1744602639373,-502.23411207,0.00019178,2]
[357937619,1744602639382,-500.0,0.00019178,2]
[357937621,1744602639391,-500.0,0.00019178,2]
[357937623,1744602639401,-505.82360696,0.00019178,2]
[357937625,1744602639410,-542.75035116,0.00019178,2]
[357937627,1744602639419,-503.07654955,0.00019178,2]
[357937629,1744602639428,-500.0,0.00019178,2]
[357937631,1744602639439,-505.92273399,0.00019178,2]
[357937633,1744602639448,-504.40464685,0.00019178,2]
[357937635,1744602639457,-633.52245034,0.00019178,2]
[357937637,1744602639466,-500.0,0.00019178,2]
[357937639,1744602639475,-500.0,0.00019178,2]
[357937641,1744602639485,-500.0,0.00019178,2]
[357937643,1744602639494,-506.18927396,0.00019178,2]
[357937645,1744602639503,-574.50011505,0.00019178,2]
[357937647,1744602639513,-164.51240688,0.00019178,2]
[357937649,1744602639523,-502.84440588,0.00019178,2]
[357937651,1744602639533,-529.57690599,0.00019178,2]
[357937653,1744602639547,-500.0,0.00019178,2]
[357937655,1744602639556,-642.19638359,0.00019178,2]
[357937657,1744602639566,-500.0,0.00019178,2]
[357937659,1744602639576,-552.34,0.00019178,2]
[357937661,1744602639586,-500.0,0.00019178,2]
[357937663,1744602639597,-500.0,0.00019178,2]
[357937664,1744602639606,-580.66482238,0.00019178,2]
[357937665,1744602639617,-514.08480293,0.00019178,2]
[357937666,1744602639627,-504.68696409,0.00019178,2]
[357937667,1744602639636,-504.40273789,0.00019178,2]
[357937668,1744602639646,-566.31403218,0.00019178,2]
[357937669,1744602639655,-500.0,0.00019178,2]
[357937670,1744602639664,-514.47110817,0.00019178,2]
[357937671,1744602639674,-503.61069134,0.00019178,2]
[357937672,1744602639684,-500.0,0.00019178,2]
[357937673,1744602639694,-508.76426947,0.00019178,2]
[357937674,1744602639704,-500.0,0.00019178,2]
[357937675,1744602639713,-504.6512416,0.00019178,2]
[357937676,1744602639723,-534.29350757,0.00019178,2]
[357937677,1744602639732,-512.21641759,0.00019178,2]
[357937678,1744602639742,-513.6875258,0.00019178,2]
[357937679,1744602639752,-500.46679976,0.00019178,2]
[357937680,1744602639762,-503.91531705,0.00019178,2]
[357937681,1744602639772,-500.0,0.00019178,2]
[357937682,1744602639782,-524.63404989,0.00019178,2]
[357937683,1744602639793,-500.0,0.00019178,2]
[357937684,1744602639803,-500.0,0.00019178,2]
[357937685,1744602639813,-516.58818088,0.00019178,2]
[357937686,1744602639822,-500.0,0.00019178,2]
[357937687,1744602639831,-503.28849273,0.00019178,2]
[357937688,1744602639840,-572.53742257,0.00019178,2]
[357937690,1744602639850,-500.0,0.00019178,2]
[357937691,1744602639860,-558.56244935,0.00019178,2]
[357937692,1744602639870,-539.76,0.00019178,2]
[357937693,1744602639879,-529.28085514,0.00019178,2]
[357937694,1744602639889,-500.0,0.00019178,2]
[357937695,1744602639899,-500.0,0.00019178,2]
[357937696,1744602639908,-501.70734782,0.00019178,2]
[357937697,1744602639918,-500.0,0.00019178,2]
[357937698,1744602639928,-500.0,0.00019178,2]
[357937699,1744602639937,-500.0,0.00019178,2]
[357937700,1744602639946,-500.0,0.00019178,2]
[357937701,1744602639956,-500.47592392,0.00019178,2]
[357937702,1744602639965,-500.0,0.00019178,2]
[357937703,1744602639975,-502.68892414,0.00019178,2]
[357937704,1744602639984,-554.33386073,0.00019178,2]
[357937705,1744602639993,-567.92942306,0.00019178,2]
[357937706,1744602640003,-505.64833474,0.00019178,2]
[357937707,1744602640013,-507.32447413,0.00019178,2]
[357937708,1744602640023,-500.0,0.00019178,2]
[357937709,1744602640032,-500.0,0.00019178,2]
[357937710,1744602640042,-503.77203762,0.00019178,2]
[357937711,1744602640051,-500.0,0.00019178,2]
[357937712,1744602640061,-236.4122041,0.00019178,2]
[357937713,1744602640071,-547.22802066,0.00019178,2]
[357937714,1744602640080,-500.0,0.00019178,2]
[357937715,1744602640090,-505.98136559,0.00019178,2]
[357937716,1744602640099,-509.04554293,0.00019178,2]
[357937717,1744602640108,-500.0,0.00019178,2]
[357937718,1744602640118,-506.48594439,0.00019178,2]
[357937719,1744602640127,-500.0,0.00019178,2]
[357937720,1744602640136,-505.78275868,0.00019178,2]
[357937721,1744602640147,-151.93418267,0.00019178,2]
[357937722,1744602640157,-564.453578,0.00019178,2]
[357937723,1744602640167,-501.86357277,0.00019178,2]
[357937724,1744602640177,-500.0,0.00019178,2]
[357937725,1744602640189,-560.72790628,0.00019178,2]
[357937726,1744602640198,-331.40789487,0.00019178,2]
[357937727,1744602640207,-624.2793043,0.00019178,2]
[357937728,1744602640217,-541.75953092,0.00019178,2]
[357937729,1744602640226,-502.63140376,0.00019178,2]
[357937730,1744602640236,-500.0,0.00019178,2]
[357937731,1744602640246,-503.15740266,0.00019178,2]
[357937732,1744602640255,-500.0,0.00019178,2]
[357937733,1744602640265,-500.0,0.00019178,2]
[357937734,1744602640275,-208.53227928,0.00019178,2]
[357937735,1744602640284,-500.0,0.00019178,2]
[357937736,1744602640294,-540.94462221,0.00019178,2]
[357937737,1744602640303,-500.0,0.00019178,2]
[357937738,1744602640312,-529.82867513,0.00019178,2]
[357937739,1744602640321,-507.14253645,0.00019178,2]
[357937740,1744602640331,-500.0,0.00019178,2]
[357937741,1744602640340,-524.48685617,0.00019178,2]
[357937742,1744602640350,-500.0,0.00019178,2]
[357937743,1744602640359,-524.77173414,0.00019178,2]
[357937744,1744602640369,-545.65487686,0.00019178,2]
[357937745,1744602640379,-501.77840967,0.00019178,2]
[357937746,1744602640390,-522.82652866,0.00019178,2]
[357937747,1744602640399,-501.33695362,0.00019178,2]
[357937748,1744602640408,-500.0,0.00019178,2]
[357937749,1744602640418,-507.5415268,0.00019178,2]
[357937750,1744602640427,-531.60432545,0.00019178,2]
[357937751,1744602640437,-576.51323984,0.00019178,2]
[357937752,1744602640446,-507.24349438,0.00019178,2]
[357937753,1744602640456,-537.06304719,0.00019178,2]
[357937754,1744602640465,-500.0,0.00019178,2]
[357937755,1744602640475,-500.0,0.00019178,2]
[357937756,1744602640485,-560.44197647,0.00019178,2]
[357937757,1744602640495,-501.86339107,0.00019178,2]
[357937758,1744602640505,-533.06420198,0.00019178,2]
[357937759,1744602640515,-500.0,0.00019178,2]
[357937760,1744602640525,-517.1034608,0.00019178,2]
[357937761,1744602640538,-567.19685884,0.00019178,2]
[357937762,1744602640548,-502.17278543,0.00019178,2]
[357937763,1744602640558,-516.33583586,0.00019178,2]
[357937764,1744602640568,-262.34,0.00019178,2]
[357937765,1744602640577,-500.0,0.00019178,2]
[357937766,1744602640587,-500.0,0.00019178,2]
[357937767,1744602640597,-407.76182533,0.00019178,2]
[357937768,1744602640607,-500.0,0.00019178,2]
[357937769,1744602640619,-500.0,0.00019178,2]
[357937770,1744602640630,-500.0,0.00019178,2]
[357937771,1744602640640,-546.7408207,0.00019178,2]
[357937772,1744602640649,-532.75542685,0.00019178,2]
[357937773,1744602640660,-500.0,0.00019178,2]
[357937774,1744602640670,-340.31156942,0.00019178,2]
[357937775,1744602640681,-502.04019792,0.00019178,2]
[357937776,1744602640690,-500.0,0.00019178,2]
[357937777,1744602640700,-500.0,0.00019178,2]
[357937778,1744602640710,-523.68616532,0.00019178,2]
[357937779,1744602640719,-500.53256158,0.00019178,2]
[357937780,1744602640729,-517.61681257,0.00019178,2]
[357937781,1744602640739,-511.06452904,0.00019178,2]
[357937782,1744602640749,-534.75988913,0.00019178,2]
[357937783,1744602640759,-521.92753559,0.00019178,2]
[357937784,1744602640769,-512.89163324,0.00019178,2]
[357937785,1744602640779,-952.84,0.00019178,2]
[357937786,1744602640789,-500.0,0.00019178,2]
[357937787,1744602640799,-338.46081013,0.00019178,2]
[357937788,1744602640809,-500.0,0.00019178,2]
[357937789,1744602640820,-538.04561696,0.00019178,2]
[357937790,1744602640831,-500.0,0.00019178,2]
[357937791,1744602640842,-500.0,0.00019178,2]
[357937792,1744602640852,-506.45788048,0.00019178,2]
[357937793,1744602640862,-501.83505776,0.00019178,2]
[357937794,1744602640872,-518.0266153,0.00019178,2]
[357937795,1744602640882,-512.41712269,0.00019178,2]
[357937796,1744602640891,-647.33425274,0.00019178,2]
[357937797,1744602640900,-507.41830754,0.00019178,2]
[357937798,1744602640912,-518.39833755,0.00019178,2]
[357937799,1744602640925,-500.0,0.00019178,2]
[357937800,1744602640935,-506.05094994,0.00019178,2]
[357937801,1744602640945,-596.20761261,0.00019178,2]
[357937802,1744602640955,-500.0,0.00019178,2]
[357937803,1744602640965,-509.65878346,0.00019178,2]
[357937804,1744602640975,-508.67357697,0.00019178,2]
[357937805,1744602640986,-500.0,0.00019178,2]
[357937806,1744602640996,-536.35299338,0.00019178,2]
[357937807,1744602641007,-501.56806034,0.00019178,2]
[357937808,1744602641016,-512.4790636,0.00019178,2]
[357937809,1744602641026,-443.48429622,0.00019178,2]
[357937810,1744602641036,-502.23248882,0.00019178,2]
[357937811,1744602641047,-500.0,0.00019178,2]
[357937812,1744602641056,-340.88770081,0.00019178,2]
[357937813,1744602641066,-503.59106847,0.00019178,2]
[357937814,1744602641075,-500.0,0.00019178,2]
[357937815,1744602641085,-500.0,0.00019178,2]
[357937816,1744602641094,-500.0,0.00019178,2]
[357937817,1744602641105,-500.0,0.00019178,2]
[357937818,1744602641115,-500.0,0.00019178,2]
[357937819,1744602641125,-521.49458855,0.00019178,2]
[357937820,1744602641136,-500.0,0.00019178,2]
[357937821,1744602641146,-500.0,0.00019178,2]
[357937822,1744602641156,-500.0,0.00019178,2]
[357937823,1744602641167,-514.7204286,0.00019178,2]
[357937824,1744602641176,-500.0,0.00019178,2]
[357937825,1744602641186,-511.89480824,0.00019178,2]
[357937826,1744602641196,-502.95819699,0.00019178,2]
[357937827,1744602641205,-500.0,0.00019178,2]
[357937828,1744602641215,-500.0,0.00019178,2]
[357937829,1744602641223,-501.08538848,0.00019178,2]
[357937830,1744602641231,-500.0,0.00019178,2]
[357937831,1744602641240,-500.0,0.00019178,2]
[357937832,1744602641250,-500.0,0.00019178,2]
[357937833,1744602641260,-613.49476184,0.00019178,2]
[357937834,1744602641270,-509.83526668,0.00019178,2]
[357937835,1744602641280,-504.71807554,0.00019178,2]
[357937836,1744602641293,-500.0,0.00019178,2]
[357937837,1744602641303,-500.0,0.00019178,2]
[357937838,1744602641312,-500.0,0.00019178,2]
[357937839,1744602641322,-151.60778395,0.00019178,2]
[357937840,1744602641331,-500.0,0.00019178,2]
[357937841,1744602641341,-499.55691576,0.00019178,2]
[357937842,1744602641351,-511.05145884,0.00019178,2]
[357937843,1744602641360,-500.0,0.00019178,2]
[357937844,1744602641370,-500.0,0.00019178,2]
[357937845,1744602641379,-500.0,0.00019178,2]
[357937846,1744602641387,-514.79175643,0.00019178,2]
[357937847,1744602641397,-500.0,0.00019178,2]
[357937848,1744602641407,-508.42423475,0.00019178,2]
[357937849,1744602641417,-513.13795674,0.00019178,2]
[357937850,1744602641427,-500.0,0.00019178,2]
[357937851,1744602641436,-500.0,0.00019178,2]
[357937852,1744602641446,-500.0,0.00019178,2]
[357937853,1744602641455,-510.54374135,0.00019178,2]
[357937854,1744602641465,-500.0,0.00019178,2]
[357937855,1744602641474,-500.0,0.00019178,2]
[357937856,1744602641484,-514.04058335,0.00019178,2]